fUSD/lending_fUSD_20250116
["ID","MTS","AMOUNT","RATE_DAILY","PERIOD"]
[349163341,1737001836683,-500.0,0.00043267,25]
[349163342,1737001836692,-500.0,0.00043267,25]
[349163343,1737001836702,-500.0,0.00043267,25]
[349163344,1737001836711,-500.0,0.00043267,25]
[349163345,1737001836720,-500.0,0.00043267,25]
[349163346,1737001836730,-500.0,0.00043267,25]
[349163347,1737001836739,-500.0,0.00043267,25]
[349163348,1737001836748,-500.0,0.00043267,25]
[349163349,1737001836757,-500.0,0.00043267,25]
[349163350,1737001836767,-500.0,0.00043267,25]
[349163351,1737001836777,-500.0,0.00043267,25]
[349163352,1737001836786,-500.0,0.00043267,25]
[349163353,1737001836795,-500.0,0.00043267,25]
[349163354,1737001836804,-636.23108278,0.00043267,25]
[349163355,1737001836813,-500.0,0.00043267,25]
[349163356,1737001836822,-500.0,0.00043267,25]
[349163357,1737001836832,-500.0,0.00043267,25]
[349163358,1737001836841,-500.0,0.00043267,25]
[349163359,1737001836852,-500.0,0.00043267,25]
[349163360,1737001836861,-500.0,0.00043267,25]
[349163361,1737001836870,-500.0,0.00043267,25]
[349163362,1737001836881,-557.71866469,0.00043267,25]
[349163363,1737001836890,-500.0,0.00043267,25]
[349163364,1737001836899,-500.0,0.00043267,25]
[349163365,1737001836908,-500.0,0.00043267,25]
[349163366,1737001836918,-500.0,0.00043267,25]
[349163367,1737001836928,-500.0,0.00043267,25]
[349163368,1737001836939,-500.0,0.00043267,25]
[349163369,1737001836951,-500.0,0.00043267,25]
[349163370,1737001836960,-500.0,0.00043267,25]
[349163371,1737001836969,-500.0,0.00043267,25]
[349163372,1737001836979,-506.6822696,0.00043267,25]
[349163373,1737001836991,-500.0,0.00043267,25]
[349163374,1737001837000,-505.69728196,0.00043267,25]
[349163375,1737001837010,-500.0,0.00043267,25]
[349163376,1737001837020,-500.0,0.00043267,25]
[349163377,1737001837030,-500.0,0.00043267,25]
[349163378,1737001837039,-500.0,0.00043267,25]
[349163379,1737001837048,-500.0,0.00043267,25]
[349163380,1737001837175,-518.04953543,0.00043267,25]
[349163381,1737001837186,-500.0,0.00043267,25]
[349163382,1737001837195,-500.0,0.00043267,25]
[349163383,1737001837205,-500.0,0.00043267,25]
[349163384,1737001837214,-500.0,0.00043267,25]
[349163385,1737001837224,-500.0,0.00043267,25]
[349163386,1737001837233,-500.0,0.00043267,25]
[349163387,1737001837243,-500.0,0.00043267,25]
[349163388,1737001837252,-504.85314947,0.00043267,25]
[349163389,1737001837261,-502.59274664,0.00043267,25]
[349163390,1737001837271,-505.51356886,0.00043267,25]
[349163391,1737001837281,-407.55442588,0.00043267,25]
[349163392,1737001837291,-500.0,0.00043267,25]
[349163393,1737001837301,-500.0,0.00043267,25]
[349163394,1737001837311,-500.0,0.00043267,25]
[349163395,1737001837321,-500.0,0.00043267,25]
[349163396,1737001837331,-513.48180991,0.00043267,25]
[349163397,1737001837340,-500.0,0.00043267,25]
[349163398,1737001837349,-500.0,0.00043267,25]
[349163399,1737001837358,-502.8609194,0.00043267,25]
[349163400,1737001837368,-490.2510692,0.00043267,25]
[349163401,1737001837377,-500.0,0.00043267,25]
[349163402,1737001837386,-501.93018528,0.00043267,25]
[349163404,1737001837396,-505.3003222,0.00043267,25]
[349163405,1737001837405,-500.0,0.00043267,25]
[349163406,1737001837415,-508.32172841,0.00043267,25]
[349163407,1737001837424,-151.72,0.00043267,25]
[349163408,1737001837434,-487.44340719,0.00043267,25]
[349163409,1737001837444,-505.60092694,0.00043267,25]
[349163410,1737001837454,-500.0,0.00043267,25]
[349163411,1737001837463,-310.6,0.00043267,25]
[349163412,1737001837473,-329.09,0.00043267,25]
[349163413,1737001837483,-500.0,0.00043267,25]
[349163414,1737001837492,-500.0,0.00043267,25]
[349163415,1737001837502,-274.56,0.00043267,25]
[349163416,1737001837511,-500.0,0.00043267,25]
[349163417,1737001837521,-502.52999952,0.00043267,25]
[349163418,1737001837531,-500.0,0.00043267,25]
[349163419,1737001837540,-506.19240723,0.00043267,25]
[349163420,1737001837550,-500.0,0.00043267,25]
[349163421,1737001837560,-500.0,0.00043267,25]
[349163422,1737001837570,-504.77810106,0.00043267,25]
[349163423,1737001837579,-500.0,0.00043267,25]
[349163424,1737001837589,-504.19298132,0.00043267,25]
[349163425,1737001837601,-500.0,0.00043267,25]
[349163426,1737001837611,-500.0,0.00043267,25]
[349163427,1737001837620,-500.0,0.00043267,25]
[349163428,1737001837630,-500.0,0.00043267,25]
[349163429,1737001837639,-500.0,0.00043267,25]
[349163430,1737001837649,-500.0,0.00043267,25]
[349163431,1737001837659,-500.0,0.00043267,25]
[349163432,1737001837668,-500.0,0.00043267,25]
[349163433,1737001837678,-500.0,0.00043267,25]
[349163434,1737001837687,-505.52370527,0.00043267,25]
[349163435,1737001837697,-503.70995121,0.00043267,25]
[349163436,1737001837707,-500.0,0.00043267,25]
[349163437,1737001837717,-500.0,0.00043267,25]
[349163438,1737001837726,-389.43578497,0.00043267,25]
[349163439,1737001837736,-352.4,0.00043267,25]
[349163440,1737001837746,-500.0,0.00043267,25]
[349163441,1737001837757,-500.0,0.00043267,25]
[349163442,1737001837767,-330.4,0.00043267,25]
[349163443,1737001837777,-500.0,0.00043267,25]
[349163444,1737001837786,-503.03805005,0.00043267,25]
[349163445,1737001837796,-500.0,0.00043267,25]
[349163447,1737001837805,-500.0,0.00043267,25]
[349163449,1737001837815,-599.77346674,0.00043267,25]
[349163450,1737001837824,-500.0,0.00043267,25]
[349163453,1737001837833,-500.0,0.00043267,25]
[349163454,1737001837843,-500.0,0.00043267,25]
[349163456,1737001837853,-500.0,0.00043267,25]
[349163458,1737001837862,-500.0,0.00043267,25]
[349163460,1737001837872,-500.0,0.00043267,25]
[349163462,1737001837881,-622.86,0.00043267,45]
[349163464,1737001837890,-500.0,0.00043267,25]
[349163466,1737001837899,-500.0,0.00043267,25]
[349163468,1737001837908,-500.0,0.00043267,25]
[349163470,1737001837917,-626.90719069,0.00043267,25]
[349163472,1737001837927,-500.0,0.00043267,25]
[349163474,1737001837935,-500.0,0.00043267,25]
[349163475,1737001837947,-500.0,0.00043267,25]
[349163478,1737001837956,-502.94781024,0.00043267,25]
[349163481,1737001837966,-500.0,0.00043267,25]
[349163484,1737001837975,-500.0,0.00043267,25]
[349163487,1737001837985,-459.3,0.00043267,25]
[349163490,1737001837994,-500.0,0.00043267,25]
[349163492,1737001838003,-500.0,0.00043267,25]
[349163494,1737001838013,-619.03,0.00043267,25]
[349163496,1737001838024,-500.0,0.00043267,25]
[349163498,1737001838033,-500.0,0.00043267,25]
[349163500,1737001838042,-500.0,0.00043267,25]
[349163502,1737001838052,-500.0,0.00043267,25]
[349163504,1737001838061,-314.0,0.00043267,25]
[349163506,1737001838070,-500.0,0.00043267,25]
[349163508,1737001838079,-500.0,0.00043267,25]
[349163510,1737001838088,-500.0,0.00043267,25]
[349163512,1737001838098,-500.0,0.00043267,25]
[349163514,1737001838107,-500.0,0.00043267,25]
[349163516,1737001838116,-500.0,0.00043267,25]
[349163518,1737001838125,-507.30462137,0.00043267,25]
[349163520,1737001838134,-168.83556566,0.00043267,25]
[349163522,1737001838143,-358.61,0.00043267,25]
[349163524,1737001838152,-500.0,0.00043267,25]
[349163526,1737001838161,-500.0,0.00043267,25]
[349163528,1737001838170,-503.01933187,0.00043267,25]
[349163530,1737001838179,-500.0,0.00043267,25]
[349163532,1737001838189,-500.0,0.00043267,25]
[349163534,1737001838198,-500.0,0.00043267,25]
[349163536,1737001838207,-500.0,0.00043267,25]
[349163538,1737001838216,-500.0,0.00043267,25]
[349163540,1737001838225,-500.0,0.00043267,25]
[349163542,1737001838234,-500.0,0.00043267,25]
[349163544,1737001838243,-500.0,0.00043267,25]
[349163545,1737001838252,-581.19,0.00043267,25]
[349163547,1737001838262,-500.0,0.00043267,25]
[349163549,1737001838271,-500.0,0.00043267,25]
[349163551,1737001838281,-500.0,0.00043267,25]
[349163554,1737001838290,-344.82,0.00043267,25]
[349163556,1737001838300,-500.0,0.00043267,25]
[349163558,1737001838309,-174.88,0.00043267,25]
[349163560,1737001838318,-500.0,0.00043267,25]
[349163561,1737001838327,-500.0,0.00043267,25]
[349163564,1737001838336,-500.0,0.00043267,25]
[349163566,1737001838346,-151.0,0.00043267,14]
[349163567,1737001838355,-500.0,0.00043267,25]
[349163569,1737001838365,-500.0,0.00043267,25]
[349163571,1737001838374,-500.0,0.00043267,25]
[349163574,1737001838383,-500.0,0.00043267,25]
[349163576,1737001838394,-502.55561316,0.00043267,25]
[349163578,1737001838403,-438.89853356,0.00043267,25]
[349163580,1737001838412,-500.0,0.00043267,25]
[349163582,1737001838421,-500.0,0.00043267,25]
[349163584,1737001838430,-500.0,0.00043267,25]
[349163585,1737001838440,-500.0,0.00043267,25]
[349163587,1737001838448,-500.0,0.00043267,25]
[349163589,1737001838458,-500.0,0.00043267,25]
[349163592,1737001838468,-500.0,0.00043267,25]
[349163593,1737001838478,-500.0,0.00043267,25]
[349163595,1737001838487,-500.0,0.00043267,25]
[349163597,1737001838496,-239.5,0.00043267,25]
[349163599,1737001838506,-500.0,0.00043267,25]
[349163601,1737001838515,-506.39442063,0.00043267,25]
[349163603,1737001838524,-500.0,0.00043267,25]
[349163605,1737001838534,-518.87,0.00043267,25]
[349163607,1737001838543,-503.2364782,0.00043267,25]
[349163609,1737001838552,-500.0,0.00043267,25]
[349163611,1737001838561,-500.0,0.00043267,25]
[349163614,1737001838573,-500.0,0.00043267,25]
[349163616,1737001838585,-504.17384441,0.00043267,25]
[349163618,1737001838599,-505.36,0.00043267,25]
[349163620,1737001838611,-152.226512,0.00043267,14]
[349163623,1737001838623,-500.0,0.00043267,25]
[349163625,1737001838634,-502.52365417,0.00043267,25]
[349163627,1737001838644,-500.0,0.00043267,25]
[349163629,1737001838654,-500.0,0.00043267,25]
[349163631,1737001838666,-361.74,0.00043267,25]
[349163633,1737001838678,-503.83462644,0.00043267,25]
[349163635,1737001838689,-500.0,0.00043267,25]
[349163638,1737001838700,-500.0,0.00043267,25]
[349163640,1737001838712,-500.0,0.00043267,25]
[349163642,1737001838724,-500.0,0.00043267,25]
[349163644,1737001838737,-500.0,0.00043267,25]
[349163647,1737001838748,-500.0,0.00043267,25]
[349163649,1737001838759,-500.0,0.00043267,25]
[349163651,1737001838771,-500.0,0.00043267,25]
[349163653,1737001838783,-500.0,0.00043267,25]
[349163655,1737001838793,-500.0,0.00043267,25]
[349163657,1737001838803,-500.0,0.00043267,25]
[349163659,1737001838816,-222.27,0.00043267,25]
[349163662,1737001838828,-502.57468051,0.00043267,25]
[349163664,1737001838840,-500.0,0.00043267,25]
[349163666,1737001838852,-500.0,0.00043267,25]
[349163668,1737001838864,-500.0,0.00043267,25]
[349163671,1737001838876,-338.77,0.00043267,25]
[349163673,1737001838888,-500.0,0.00043267,25]
[349163675,1737001838899,-151.0,0.00043267,14]
[349163677,1737001838910,-500.0,0.00043267,25]
[349163680,1737001838922,-505.62922625,0.00043267,25]
[349163682,1737001838934,-397.41,0.00043267,25]
[349163684,1737001838949,-500.0,0.00043267,25]
[349163686,1737001838961,-500.0,0.00043267,25]
[349163689,1737001838972,-500.0,0.00043267,25]
[349163691,1737001838985,-168.35,0.00043267,25]
[349163693,1737001838997,-500.0,0.00043267,25]
[349163695,1737001839008,-401.46610498,0.00043267,25]
[349163698,1737001839021,-301.98,0.00043267,25]
[349163700,1737001839033,-502.24010553,0.00043267,25]
[349163702,1737001839043,-500.0,0.00043267,25]
[349163704,1737001839055,-503.70151103,0.00043267,25]
[349163706,1737001839066,-500.0,0.00043267,25]
[349163709,1737001839076,-500.0,0.00043267,25]
[349163711,1737001839088,-500.0,0.00043267,25]
[349163713,1737001839100,-500.0,0.00043267,25]
[349163715,1737001839111,-265.99,0.00043267,25]
[349163718,1737001839124,-500.0,0.00043267,25]
[349163720,1737001839136,-500.0,0.00043267,25]
[349163722,1737001839148,-500.0,0.00043267,25]
[349163724,1737001839159,-492.88,0.00043267,25]
[349163727,1737001839171,-500.0,0.00043267,25]
[349163729,1737001839181,-500.0,0.00043267,25]
[349163731,1737001839192,-500.0,0.00043267,25]
[349163733,1737001839202,-500.0,0.00043267,25]
[349163735,1737001839212,-500.0,0.00043267,25]
[349163737,1737001839223,-706.42,0.00043267,25]
[349163739,1737001839234,-500.0,0.00043267,25]
[349163742,1737001839248,-151.412496,0.00043267,2]
[349163744,1737001839261,-500.0,0.00043267,25]
[349163746,1737001839271,-504.48130917,0.00043267,25]
[349163748,1737001839282,-500.0,0.00043267,25]
[349163750,1737001839292,-376.14,0.00043267,25]
[349163752,1737001839301,-392.19,0.00043267,25]
[349163754,1737001839310,-503.94740425,0.00043267,25]
[349163756,1737001839320,-151.94092,0.00043267,14]
[349163758,1737001839333,-500.0,0.00043267,25]
[349163759,1737001839344,-151.94092,0.00043267,14]
[349163760,1737001839356,-502.84954173,0.00043267,25]
[349163761,1737001839366,-500.0,0.00043267,25]
[349163762,1737001839376,-1063.01,0.00043267,25]
[349163763,1737001839386,-500.0,0.00043267,25]
[349163764,1737001839397,-500.0,0.00043267,25]
[349163767,1737001839407,-506.04364379,0.00043267,25]
[349163768,1737001839418,-500.0,0.00043267,25]
[349163769,1737001839428,-522.37,0.00043267,25]
[349163770,1737001839439,-500.0,0.00043267,25]
[349163771,1737001839450,-505.10770891,0.00043267,25]
[349163773,1737001839460,-500.0,0.00043267,25]
[349163776,1737001839470,-500.0,0.00043267,25]
[349163778,1737001839481,-167.64832442,0.00043267,25]
[349163780,1737001839492,-508.83193177,0.00043267,25]
[349163782,1737001839504,-500.0,0.00043267,25]
[349163784,1737001839514,-500.0,0.00043267,25]
[349163786,1737001839525,-500.0,0.00043267,25]
[349163789,1737001839535,-500.0,0.00043267,25]
[349163791,1737001839546,-500.0,0.00043267,25]
[349163793,1737001839556,-500.0,0.00043267,25]
[349163795,1737001839566,-151.0,0.00043267,14]
[349163797,1737001839576,-500.0,0.00043267,25]
[349163799,1737001839586,-500.0,0.00043267,25]
[349163801,1737001839597,-500.0,0.00043267,25]
[349163803,1737001839607,-500.0,0.00043267,25]
[349163805,1737001839617,-500.0,0.00043267,25]
[349163808,1737001839627,-500.0,0.00043267,25]
[349163810,1737001839638,-506.43029608,0.00043267,25]
[349163812,1737001839648,-321.62,0.00043267,25]
[349163814,1737001839658,-500.0,0.00043267,25]
[349163816,1737001839668,-641.15702462,0.00043267,25]
[349163818,1737001839678,-500.0,0.00043267,25]
[349163820,1737001839689,-500.0,0.00043267,25]
[349163822,1737001839699,-723.17,0.00043267,25]
[349163824,1737001839710,-502.4004289,0.00043267,25]
[349163826,1737001839720,-500.0,0.00043267,25]
[349163829,1737001839730,-500.0,0.00043267,25]
[349163831,1737001839740,-500.0,0.00043267,25]
[349163833,1737001839751,-589.44,0.00043267,25]
[349163835,1737001839762,-500.0,0.00043267,25]
[349163837,1737001839772,-502.28794944,0.00043267,25]
[349163839,1737001839783,-504.05503526,0.00043267,25]
[349163841,1737001839793,-500.0,0.00043267,25]
[349163843,1737001839803,-510.3459911,0.00043267,25]
[349163845,1737001839813,-353.88,0.00043267,25]
[349163847,1737001839824,-500.0,0.00043267,25]
[349163849,1737001839834,-500.0,0.00043267,25]
[349163851,1737001839845,-500.0,0.00043267,25]
[349163854,1737001839856,-534.91840991,0.00043267,25]
[349163856,1737001839866,-500.0,0.00043267,25]
[349163858,1737001839877,-151.0,0.00043267,14]
[349163860,1737001839888,-504.08844934,0.00043267,25]
[349163862,1737001839898,-500.0,0.00043267,25]
[349163864,1737001839908,-357.41,0.00043267,25]
[349163866,1737001839919,-507.50854202,0.00043267,25]
[349163868,1737001839929,-500.0,0.00043267,25]
[349163871,1737001839941,-151.0,0.00043267,14]
[349163873,1737001839952,-500.0,0.00043267,25]
[349163875,1737001839963,-295.45,0.00043267,25]
[349163877,1737001839974,-500.0,0.00043267,25]
[349163879,1737001839984,-500.0,0.00043267,25]
[349163881,1737001839994,-216.44,0.00043267,25]
[349163883,1737001840004,-500.0,0.00043267,25]
[349163885,1737001840016,-500.0,0.00043267,25]
[349163887,1737001840026,-500.0,0.00043267,25]
[349163889,1737001840036,-500.0,0.00043267,25]
[349163891,1737001840046,-500.0,0.00043267,25]
[349163894,1737001840057,-500.0,0.00043267,25]
[349163896,1737001840068,-268.49,0.00043267,25]
[349163898,1737001840079,-500.0,0.00043267,25]
[349163900,1737001840090,-500.0,0.00043267,25]
[349163902,1737001840101,-500.0,0.00043267,25]
[349163904,1737001840112,-500.0,0.00043267,25]
[349163907,1737001840123,-500.0,0.00043267,25]
[349163909,1737001840134,-500.0,0.00043267,25]
[349163911,1737001840145,-500.0,0.00043267,25]
[349163913,1737001840156,-500.0,0.00043267,25]
[349163915,1737001840166,-505.8821177,0.00043267,25]
[349163933,1737001840323,-311.28,0.00043267,25]
[349163936,1737001840337,-415.61,0.00043267,25]
[349163938,1737001840346,-500.0,0.00043267,25]
[349163940,1737001840355,-500.0,0.00043267,25]
[349163942,1737001840365,-391.96,0.00043267,25]
[349163944,1737001840374,-500.0,0.00043267,25]
[349163946,1737001840383,-500.0,0.00043267,25]
[349163947,1737001840393,-505.51222933,0.00043267,25]
[349163949,1737001840402,-640.59,0.00043267,25]
[349163951,1737001840411,-682.59,0.00043267,25]
[349163953,1737001840420,-151.0,0.00043267,14]
[349163955,1737001840429,-500.0,0.00043267,25]
[349163957,1737001840439,-151.0,0.00043267,14]
[349163959,1737001840448,-500.0,0.00043267,25]
[349163961,1737001840457,-500.0,0.00043267,25]
[349163963,1737001840466,-536.98,0.00043267,25]
[349163965,1737001840476,-326.51,0.00043267,25]
[349163967,1737001840485,-500.0,0.00043267,25]
[349163969,1737001840495,-500.0,0.00043267,25]
[349163971,1737001840504,-395.54,0.00043267,25]
[349163973,1737001840514,-500.0,0.00043267,25]
[349163975,1737001840522,-320.17,0.00043267,25]
[349163977,1737001840532,-500.0,0.00043267,25]
[349163979,1737001840541,-500.0,0.00043267,25]
[349163981,1737001840551,-1270.695934,0.00043267,14]
[349163983,1737001840560,-500.0,0.00043267,25]
[349163985,1737001840569,-1270.695934,0.00043267,14]
[349163987,1737001840578,-341.91874837,0.00043267,25]
[349163989,1737001840587,-151.0,0.00043268,14]
[349163991,1737001840597,-151.0,0.00043268,14]
[349163993,1737001840606,-151.0,0.00043268,14]
[349163995,1737001840615,-156.627586,0.00043268,25]
[349163997,1737001840624,-366.64,0.00043268,25]
[349163999,1737001840633,-500.0,0.00043268,25]
[349164001,1737001840643,-298.06,0.00043268,25]
[349164003,1737001840651,-500.0,0.00043268,25]
[349164005,1737001840660,-500.0,0.00043268,25]
[349164007,1737001840670,-458.07,0.00043268,25]
[349164009,1737001840679,-500.0,0.00043268,25]
[349164011,1737001840688,-500.0,0.00043268,25]
[349164013,1737001840698,-500.0,0.00043268,25]
[349164016,1737001840707,-500.0,0.00043268,25]
[349164018,1737001840716,-500.0,0.00043268,25]
[349164019,1737001840731,-500.0,0.00043268,25]
[349164022,1737001840742,-500.0,0.00043268,25]
[349164024,1737001840751,-500.0,0.00043268,25]
[349164026,1737001840761,-500.0,0.00043268,25]
[349164028,1737001840771,-500.0,0.00043268,25]
[349164030,1737001840780,-500.0,0.00043268,25]
[349164032,1737001840790,-500.0,0.00043268,25]
[349164033,1737001840799,-500.0,0.00043268,25]
[349164035,1737001840808,-500.0,0.00043268,25]
[349164037,1737001840817,-537.07,0.00043268,25]
[349164039,1737001840827,-500.0,0.00043268,25]
[349164041,1737001840836,-194.98,0.00043268,25]
[349164043,1737001840845,-500.0,0.00043268,25]
[349164045,1737001840854,-500.0,0.00043268,25]
[349164047,1737001840863,-500.0,0.00043268,25]
[349164049,1737001840872,-500.0,0.00043268,25]
[349164051,1737001840881,-500.0,0.00043268,25]
[349164053,1737001840890,-500.0,0.00043268,25]
[349164055,1737001840900,-682.59,0.00043268,25]
[349164057,1737001840909,-500.0,0.00043268,25]
[349164059,1737001840918,-500.0,0.00043268,25]
[349164061,1737001840927,-500.0,0.00043268,25]
[349164063,1737001840936,-500.0,0.00043268,25]
[349164065,1737001840949,-522.87,0.00043268,25]
[349164067,1737001840958,-522.87,0.00043268,25]
[349164069,1737001840967,-500.0,0.00043268,25]
[349164071,1737001840976,-536.98,0.00043268,25]
[349164073,1737001840986,-500.0,0.00043268,25]
[349164075,1737001840995,-500.0,0.00043268,25]
[349164077,1737001841005,-500.0,0.00043268,25]
[349164079,1737001841017,-630.09,0.00043268,25]
[349164081,1737001841026,-630.09,0.00043268,25]
[349164083,1737001841035,-1382.26,0.00043268,25]
[349164085,1737001841045,-60508.71252721,0.00043269,120]
[349164087,1737001841054,-151.94092,0.00043269,14]
[349164089,1737001841062,-151.94092,0.00043269,14]
[349164091,1737001841071,-151.0,0.00043269,14]
[349164093,1737001841081,-151.0,0.00043269,14]
[349164095,1737001841090,-151.0,0.00043269,14]
[349164097,1737001841099,-1270.695934,0.00043269,14]
[349164099,1737001841110,-1270.695934,0.00043269,14]
[349164101,1737001841121,-1131.04942757,0.00043281,120]
[349164103,1737001841130,-1304.22920512,0.00043282,120]
[349164105,1737001841139,-151.0,0.00043282,14]
[349164107,1737001841148,-494.54851963,0.00043292,15]
[349164109,1737001841157,-15179.084235,0.000433,2]
[349164111,1737001841166,-163.38458057,0.00043303,15]
[349164113,1737001841175,-1304.22920512,0.00043313,120]
[349164115,1737001841184,-494.54851963,0.00043346,15]
[349164117,1737001841193,-1304.22920512,0.0004336,120]
[349164119,1737001841203,-500.0,0.00043366,25]
[349164121,1737001841212,-177.561125,0.00043366,25]
[349164123,1737001841222,-333.57,0.00043366,25]
[349164125,1737001841231,-500.0,0.00043366,25]
[349164127,1737001841241,-500.0,0.00043366,25]
[349164129,1737001841250,-551.75,0.00043366,25]
[349164131,1737001841259,-500.0,0.00043366,25]
[349164133,1737001841268,-500.0,0.00043366,25]
[349164135,1737001841278,-500.0,0.00043366,25]
[349164137,1737001841287,-500.0,0.00043366,25]
[349164139,1737001841296,-500.0,0.00043366,25]
[349164141,1737001841306,-168.08,0.00043366,25]
[349164143,1737001841315,-492.55,0.00043366,25]
[349164145,1737001841324,-182.22,0.00043366,25]
[349164147,1737001841333,-500.0,0.00043366,25]
[349164149,1737001841342,-459.7,0.00043366,25]
[349164151,1737001841352,-1382.26,0.00043366,25]
[349164153,1737001841361,-151.0,0.00043367,14]
[349164155,1737001841371,-151.0,0.00043367,14]
[349164157,1737001841380,-151.0,0.00043367,14]
[349164159,1737001841389,-500.0,0.00043367,25]
[349164161,1737001841398,-151.0,0.00043367,14]
[349164163,1737001841407,-500.0,0.00043367,25]
[349164165,1737001841416,-151.0,0.00043367,14]
[349164167,1737001841425,-500.0,0.00043367,25]
[349164169,1737001841434,-500.0,0.00043367,25]
[349164171,1737001841443,-151.94092,0.00043367,14]
[349164173,1737001841452,-151.94092,0.00043367,14]
[349164175,1737001841461,-500.0,0.00043367,25]
[349164177,1737001841471,-500.0,0.00043367,25]
[349164179,1737001841480,-500.0,0.00043367,25]
[349164181,1737001841489,-500.0,0.00043367,25]
[349164183,1737001841498,-500.0,0.00043367,25]
[349164185,1737001841507,-151.0,0.00043367,14]
[349164187,1737001841517,-60508.71252721,0.00043367,120]
[349164189,1737001841526,-1131.04942757,0.00043375,120]
[349164191,1737001841535,-253.08657619,0.00043383,9]
[349164193,1737001841546,-500.0,0.00043387,25]
[349164195,1737001841555,-500.0,0.00043387,25]
[349164197,1737001841564,-500.0,0.00043387,25]
[349164199,1737001841573,-500.0,0.00043387,25]
[349164201,1737001841582,-500.0,0.00043387,25]
[349164203,1737001841591,-512.84339118,0.00043387,25]
[349164205,1737001841601,-518.87,0.00043387,25]
[349164206,1737001841610,-500.0,0.00043387,25]
[349164207,1737001841619,-500.0,0.00043387,25]
[349164208,1737001841628,-500.0,0.00043387,25]
[349164209,1737001841638,-500.0,0.00043387,25]
[349164210,1737001841647,-500.0,0.00043387,25]
[349164211,1737001841656,-500.0,0.00043387,25]
[349164212,1737001841665,-500.0,0.00043387,25]
[349164213,1737001841675,-352.2,0.00043387,25]
[349164214,1737001841684,-500.0,0.00043387,25]
[349164215,1737001841693,-500.0,0.00043387,25]
[349164216,1737001841702,-175.900167,0.00043388,14]
[349164218,1737001841711,-151.0,0.00043388,14]
[349164220,1737001841720,-500.0,0.00043388,25]
[349164222,1737001841729,-622.86,0.00043388,45]
[349164224,1737001841738,-209.42,0.00043388,25]
[349164226,1737001841748,-500.0,0.00043388,25]
[349164228,1737001841757,-500.0,0.00043388,25]
[349164230,1737001841766,-500.0,0.00043388,25]
[349164232,1737001841776,-500.0,0.00043388,25]
[349164234,1737001841785,-706.42,0.00043388,25]
[349164236,1737001841795,-1063.01,0.00043388,25]
[349164238,1737001841803,-500.0,0.00043388,25]
[349164240,1737001841812,-573.6,0.00043388,25]
[349164242,1737001841821,-312.03,0.00043388,25]
[349164244,1737001841830,-500.0,0.00043388,25]
[349164246,1737001841839,-500.0,0.00043388,25]
[349164247,1737001841848,-500.0,0.00043388,25]
[349164249,1737001841857,-723.17,0.00043388,25]
[349164251,1737001841866,-500.0,0.00043388,25]
[349164253,1737001841875,-589.44,0.00043388,25]
[349164255,1737001841885,-500.0,0.00043388,25]